Cogmind - Beta 14 @@@ ROGUE MODE // 2024.09.17 @ 20:12:06 Player: hanzu Result: Destroyed by P-80 Master with Gamma Rifle Performance ------------- Evolutions (9) 4500 Regions Visited (9) 1800 Robots Destroyed (155) 775 Value Destroyed (7408) 7408 Prototype IDs (26) 520 Alien Tech Used (0) 0 Bonus (2680) 2680 TOTAL SCORE: 17683 Bonus ------- High Alert Combat Kills 1621 Follower Combat Kills 819 Registered with UFD 300 Friendly Fire -60 Cogmind --------- Core Integrity 0/1600 Matter 297/300 Energy 98/100 System Corruption 40% Temperature Cool (0) Movement Core (50) Location -1/Access Parts ------- > --- POWER (3) -------- (None) > --- PROPULSION (7) --- (None) > --- UTILITY (11) ----- (None) > --- WEAPON (4) ------- (None) > --- INVENTORY (5) ---- Light Antimatter Reactor Light Quantum Reactor Long-range Tractor Beam Phase Gun Heavy Machine Gun Peak State ------------ > --- POWER ------------ Particle Reactor Particle Reactor Reinforced Quantum Reactor > --- PROPULSION ------- Myomer Leg Myomer Leg Myomer Leg Myomer Leg Myomer Leg Myomer Leg Myomer Leg > --- UTILITY ---------- Advanced Heat Sink Advanced Heat Sink Advanced Heat Sink High-capacity Storage Unit Makeshift Salvage Targeting Computer Advanced Targeting Computer Recoil Nullifier Centrium Light Armor Plating Centrium Light Armor Plating Graphene Brace Energy Mantle > --- WEAPON ----------- Quantum Rifle Heavy Machine Gun Improved KE Penetrator Linear Accelerator > --- INVENTORY -------- Light Antimatter Reactor Light Antimatter Reactor Myomer Leg Myomer Leg Myomer Leg Myomer Leg Advanced Heat Sink Advanced Heat Sink Advanced Coolant Injector Long-range Tractor Beam Heavy Laser Phase Gun Phase Gun Advanced Variable Charge Gun Quantum Rifle Quantum Rifle Compact HERF Cannon Heavy Machine Gun [Rating: 176] Favorites ----------- Power Light Antimatter Reactor Engine Ion Engine Power Core Micro Nuclear Core Reactor Light Antimatter Reactor Propulsion Medium Treads Treads Medium Treads Leg Myomer Leg Wheel Compact Wheel Hover Unit Antigrav System Flight Unit Diametric Drive Utility Advanced Heat Sink Device Advanced Heat Sink Storage High-capacity Storage Unit Processor A0-MCA's Component Scanner Hackware Hacking Suite Protection Heavy Armor Plating Weapon Light Cannon Energy Gun Subdweller Laser Energy Cannon Subdweller Beam Cannon Ballistic Gun Hypervelocity Railgun Ballistic Cannon Light Cannon Launcher Heavy Rocket Launcher Slashing Weapon Centrium Greatsword Build | -11 -10 -10 -7 -7 -5 -4 -3 -2 -1 ------- Run | Yrd Mat Sub Rec Scr Fac Fac Res Res Acc Slots Evolved 18 | . . . . . 10 2 2 2 2 Power 2 | . . . . . 1 . 1 . . Propulsion 5 | . . . . . 2 1 1 . 1 Utility 9 | . . . . . 6 . . 2 1 Weapon 2 | . . . . . 1 1 . . . Parts Attached 219 | 6 5 22 11 5 26 16 19 51 58 Power 27 | 1 1 5 1 1 2 2 3 5 6 Engine 11 | 1 1 5 1 1 2 . . . . Core 1 | . . . . . . 1 . . . Reactor 15 | . . . . . . 1 3 5 6 Propulsion 56 | 2 . 4 2 2 9 2 4 14 17 Treads 15 | 2 . 1 . . . . 3 9 . Leg 28 | . . . . . 8 1 . 5 14 Wheel 7 | . . 3 2 2 . . . . . Hover 1 | . . . . . 1 . . . . Flight 5 | . . . . . . 1 1 . 3 Utility 72 | 1 3 5 3 2 6 9 7 17 19 Device 47 | . 1 1 3 . 4 7 3 13 15 Storage 7 | 1 1 2 . 1 . 1 1 . . Processor 5 | . . . . 1 1 . 1 2 . Hackware 2 | . 1 . . . . 1 . . . Protection 11 | . . 2 . . 1 . 2 2 4 Artifact . | . . . . . . . . . . Weapon 64 | 2 1 8 5 . 9 3 5 15 16 Energy Gun 22 | 1 . . 2 . 2 1 2 5 9 Energy Cannon 6 | . . 2 . . 1 1 . . 2 Ballistic Gun 17 | 1 . 1 . . 3 . 1 7 4 Ballistic Cannon 13 | . 1 3 2 . 1 . 2 3 1 Launcher 5 | . . 2 1 . 2 . . . . Special Weapon . | . . . . . . . . . . Impact Weapon . | . . . . . . . . . . Slashing Weapon 1 | . . . . . . 1 . . . Piercing Weapon . | . . . . . . . . . . Special Melee Weapon . | . . . . . . . . . . Unidentified Prototypes 6 | . . . . . . . 1 . 5 Corrupted Parts 2 | . . . . . . . . . 2 System Corruption 5 | . . . . . . . . . 5 Parts Lost 101 | . . 5 . . 13 15 . 30 38 Power 12 | . . 1 . . 2 2 . 4 3 Propulsion 32 | . . 2 . . 3 5 . 9 13 Utility 28 | . . 1 . . 2 5 . 10 10 Weapon 29 | . . 1 . . 6 3 . 7 12 Highest Loss Streak 30 | . . 2 . . 10 11 . 9 30 To Critical Strikes . | . . . . . . . . . . Average Slot Usage (%) 84 | . 99 83 98 100 49 66 56 86 80 Engine 8 | . 14 13 14 14 5 . . . . Reactor 3 | . . . . . . 1 9 12 10 Treads 10 | . 28 17 . . . . 10 17 . Leg 2 | . . . . . 10 14 . 1 19 Wheel 8 | . . 6 26 28 . . . . . Device 11 | . 6 4 14 7 7 18 11 23 22 Storage 7 | . 14 4 14 14 3 3 3 4 3 Processor 2 | . . . . 6 6 3 1 4 5 Protection 3 | . . 8 . . 1 . 4 4 4 Energy Gun 5 | . 14 . 4 14 6 15 3 1 6 Ballistic Gun 3 | . 1 4 . . 2 . 3 7 3 Ballistic Cannon 7 | . 12 16 7 . . . 4 6 2 Launcher 4 | . . 3 14 14 . . . . . Peak Build Rating 176 | 6 9 15 16 32 85 90 96 156 176 Average Rating 48 | 4 7 9 14 24 52 59 68 130 134 On Entrance 35 | . 6 7 11 15 32 44 3 96 139 Naked Turns 146 | . . . . . . 106 6 . 34 Heaviest Build 190 | 11 31 37 41 60 91 60 144 190 164 Greatest Support 175 | 40 40 40 32 32 107 65 84 174 175 Greatest Overweight (x) 3 | . . 3 2 2 1 1 2 2 2 Average Overweight (x) . | . . . 1 1 . . . . . Largest Inventory Capacity 20 | 8 15 15 15 20 20 5 20 20 20 Average Capacity 13 | 6 12 7 15 16 15 5 17 20 19 Most Carried 20 | 2 7 15 15 20 19 5 9 20 19 Average Carried 10 | 1 6 6 10 16 5 3 4 16 11 Final Capacity 20 | 8 15 15 15 20 5 5 20 20 5 Final Carried 20 | 2 7 9 15 20 5 5 9 14 5 Class Distribution -------------------- 60% | Mutant 14% | Scavenger-Tank 13% | Scavenger-Gunner 4% | Subdweller-Mutant Dominant Class ---------------- Mutant | -10/Materials Mutant | -10/Subcaves Mutant | -7/Recycling Mutant | -7/Scraptown Mutant | -5/Factory Scavenger-Skirmisher | -4/Factory Scavenger-Tank | -3/Research Scavenger-Gunner | -2/Research Scavenger-Tank | -1/Access Resources | -11 -10 -10 -7 -7 -5 -4 -3 -2 -1 ----------- Run | Yrd Mat Sub Rec Scr Fac Fac Res Res Acc Matter Collected 6998 | 205 199 1108 775 88 412 362 288 2740 821 Remotely 502 | . . . . . . . . 293 209 Salvage Created 8410 | . 244 425 655 . 252 90 80 4814 1850 Parts 417 | . 16 23 29 . 9 10 2 250 78 Haulers Intercepted 1 | . . . . . . . . . 1 Recyclers Shooed 10 | . . . 3 . . . 3 4 . Parts Field Recycled . | . . . . . . . . . . Retrieved Matter . | . . . . . . . . . . Parts Self-Destructed 6 | . . 6 . . . . . . . Prevented . | . . . . . . . . . . Kills | -11 -10 -10 -7 -7 -5 -4 -3 -2 -1 ------- Run | Yrd Mat Sub Rec Scr Fac Fac Res Res Acc Combat Hostiles Destroyed 120 | . 5 20 . . 12 2 1 54 26 Melee 2 | . . . . . . 2 . . . Guns 50 | . 2 3 . . 2 . . 28 15 Cannons 47 | . 3 11 . . 1 . 1 26 5 AOE 16 | . . 6 . . 8 . . . 2 Classes Destroyed 17 | . 4 4 1 . 1 2 . 2 3 Worker 7 | . . . . . . 1 . 6 . Builder 10 | . 1 . 3 . . . . 4 2 Hauler 1 | . . . . . . . . . 1 Recycler 10 | . . . 6 . . . . 4 . Operator 1 | . 1 . . . . . . . . Turret 1 | . . 1 . . . . . . . Watcher 5 | . 1 . . . . . . 4 . Swarmer 32 | . . 2 . . 9 1 . 10 10 Cutter 3 | . . . . . . . . 3 . Grunt 32 | . 5 . . . 2 . . 15 10 Brawler 2 | . . . . . . . . . 2 Duelist 1 | . . . . . . . . . 1 Sentry 7 | . . 1 . . . . . 6 . Hunter 7 | . . . . . 1 . 1 5 . Programmer 18 | . . . . . . 1 . 14 3 Heavy 1 | . . . . . . . . 1 . Subdweller 17 | . . 17 . . . . . . . Best Kill Streak 12 | . 3 2 3 . 5 2 1 8 12 Combat Bots Only 12 | . 2 2 . . 5 2 1 6 12 Max Kills in Single Turn 3 | . 2 2 1 . 3 1 1 3 2 Gunslinging 1 | . . . . . . . . 1 . Exploded 3 | . . 2 . . 3 . . . 2 Melee 1 | . . . . . . 1 . . . Uniques/NPCs Destroyed . | . . . . . . . . . . Combat | -11 -10 -10 -7 -7 -5 -4 -3 -2 -1 -------- Run | Yrd Mat Sub Rec Scr Fac Fac Res Res Acc Hostile Shots Fired 1434 | . 15 111 . . 236 171 . 457 444 Missed 457 | . 6 38 . . 78 55 . 136 144 Damage Taken 19989 | . 118 1389 76 . 2729 2547 84 6446 6600 Core 3641 | . 27 197 . . 558 1001 . 256 1602 Absorbed by Shields 3250 | . . . . . . 15 88 1659 1488 Redirected to Shielding 131 | . . . . . . . . 131 . Regen/Repaired (Parts) 14 | . . . . . . 14 . . . Core Remaining (%) 58 | 100 . . . 10 44 12 100 82 . Volleys Fired 492 | . 18 94 133 . 40 4 8 123 72 Largest 4 | . 2 2 1 . 3 4 4 4 4 Hottest 433 | . 75 80 80 . 160 217 261 311 433 Shots Fired 1093 | . 36 165 132 . 61 10 24 453 212 Gun 576 | . 20 26 18 . 42 10 16 273 171 Cannon 479 | . 16 121 101 . 12 . 8 180 41 Launcher 38 | . . 18 13 . 7 . . . . Special . | . . . . . . . . . . Kinetic 753 | . 18 146 84 . 21 . 16 405 63 Thermal 275 | . . 3 35 . 33 10 8 48 138 Explosive 36 | . . 16 13 . 7 . . . . Electromagnetic 29 | . 18 . . . . . . . 11 Robot Hit Streak 18 | . 6 12 13 . 7 1 8 13 18 Robot Miss Streak 8 | . 1 5 1 . 3 3 2 8 3 Penetration Max 2 | . . . . . . . . 2 . Secondary Targets 19 | . . . . . . . . 12 7 Max Gunslinging Chain 1 | . . . . . . . . 1 1 Shots Hit Robots 648 | . 22 107 22 . 49 8 15 276 149 Core Hits 304 | . 12 37 13 . 34 5 5 135 63 Critical Kills 49 | . . 1 . . . . 1 46 1 Critical Parts Destroyed 62 | . . . . . . . 1 61 . Critical Strikes 131 | . . 6 . . 2 1 2 115 5 Burn 3 | . . . . . 2 . . . 1 Destroy 114 | . . 1 . . . . 2 110 1 Blast 13 | . . 5 . . . . . 5 3 Sever 1 | . . . . . . 1 . . . Melee Attacks 6 | . . . . . . 6 . . . Impact . | . . . . . . . . . . Slashing 6 | . . . . . . 6 . . . Piercing . | . . . . . . . . . . Sneak Attacks . | . . . . . . . . . . Combat Hostiles . | . . . . . . . . . . Follow-up Attacks . | . . . . . . . . . . Damage Inflicted 17135 | . 452 2308 636 . 1664 413 391 6443 4828 Guns 9105 | . 202 301 332 . 645 87 324 3717 3497 Cannons 5742 | . 189 1438 138 . 255 . 62 2704 956 Explosions 1868 | . 61 569 148 . 718 . . . 372 Melee 325 | . . . . . . 325 . . . Ramming 95 | . . . 18 . 46 1 5 22 3 Kinetic 9126 | . 196 1739 63 . 411 . 207 5220 1290 Thermal 5285 | . 61 . 407 . 489 87 179 1201 2861 Explosive 1807 | . . 569 148 . 718 . . . 372 Electromagnetic 497 | . 195 . . . . . . . 302 Impact . | . . . . . . . . . . Slashing 325 | . . . . . . 325 . . . Piercing . | . . . . . . . . . . Highest Corruption 39 | . . . . . . 4 . 16 39 Average Corruption 13 | . . . . . . 3 . 11 20 Corruption Purged . | . . . . . . . . . . Corruption Blocked . | . . . . . . . . . . Effects 98 | . . . . . . 2 . 71 25 Message Errors 14 | . . . . . . . . 9 5 Matter Fused 23 | . . . . . . 1 . 17 5 Heat Flow Errors 8 | . . . . . . . . 7 1 Energy Discharges 10 | . . . . . . . . 6 4 Parts Rejected 6 | . . . . . . . . 5 1 Data Loss (minor) 8 | . . . . . . 1 . 6 1 Data Loss (major) 6 | . . . . . . . . 6 . Misfires 4 | . . . . . . . . 2 2 Alerts 2 | . . . . . . . . 2 . Misdirections 5 | . . . . . . . . 1 4 Weapon Failures 12 | . . . . . . . . 10 2 Overload Shots 21 | . . . . . . . . . 21 Overflow Damage 147 | . . . 48 . 2 47 . 15 35 Projectiles 50 | . . . . . . . . 15 35 Explosions 50 | . . . 48 . 2 . . . . Melee 47 | . . . . . . 47 . . . Knockbacks 51 | . 3 15 2 . 5 . 2 19 5 Impact . | . . . . . . . . . . Kinetic 51 | . 3 15 2 . 5 . 2 19 5 Secondary . | . . . . . . . . . . Self-Inflicted Damage 127 | . . 5 77 . 44 . . . 1 Shots 5 | . . 1 2 . 2 . . . . Rammed 7 | . . . 3 . . 1 1 1 1 Targets Rammed 13 | . . . 3 . 6 1 1 1 1 Kicked 6 | . . . . . 6 . . . . Crushed . | . . . . . . . . . . Highest Temperature 605 | . 114 268 300 . 605 22 384 426 364 Average Temperature 100 | . 35 120 90 . 201 12 202 91 100 Received Heat Transfer 2637 | . 84 654 . . 729 168 18 457 527 Effects 18 | . . . 3 . 8 . 1 5 1 Shutdowns 5 | . . . . . 1 . 1 2 1 Energy Bleed 4 | . . . 1 . 2 . . 1 . Interference 2 | . . . 2 . . . . . . Matter Decay 1 | . . . . . 1 . . . . Short Circuit 3 | . . . . . 2 . . 1 . Damage (minor) 2 | . . . . . 1 . . 1 . Damage (core) 1 | . . . . . 1 . . . . Siege Activations . | . . . . . . . . . . Robots Corrupted . | . . . . . . . . . . Combat Hostiles . | . . . . . . . . . . Parts Fried 5 | . 2 . . . . . . . 3 Impact Corruptions . | . . . . . . . . . . Robots Melted 5 | . . . . . 1 . . . 4 Combat Hostiles 5 | . . . . . 1 . . . 4 Parts Melted 28 | . . 1 . . 3 . 1 3 20 Heat Transferred 7650 | . 150 . 511 . 1305 136 222 1480 3846 Parts Sabotaged . | . . . . . . . . . . Parts Stolen . | . . . . . . . . . . Parts Stripped . | . . . . . . . . . . Power Chain Reactions 1 | . 1 . . . . . . . . Alert | -11 -10 -10 -7 -7 -5 -4 -3 -2 -1 ------- Run | Yrd Mat Sub Rec Scr Fac Fac Res Res Acc Peak Influence 1007 | . 181 . 61 . 330 278 499 1007 893 Initial 597 | . . . . . . 135 42 168 597 Average 283 | . 32 . 23 . 104 107 279 498 764 Maximum Alert Level 3 | . . . . . 1 1 2 3 3 Low Security (%) 58 | 100 100 . 100 . 85 97 34 17 . Level 1 13 | . . . . . 14 2 40 28 . Level 2 11 | . . . . . . . 24 24 22 Level 3 17 | . . . . . . . . 29 77 Level 4 . | . . . . . . . . . . Level 5 . | . . . . . . . . . . High Security . | . . . . . . . . . . Max Security . | . . . . . . . . . . Squads Dispatched 32 | . 2 . . . 3 3 2 14 8 Investigation 5 | . 1 . . . 1 1 1 1 . Extermination 8 | . . . . . 1 1 . 4 2 Reinforcement 9 | . 1 . . . 1 1 1 4 1 Assault 5 | . . . . . . . . 1 4 Garrison 5 | . . . . . . . . 4 1 Intercept . | . . . . . . . . . . Searches Triggered . | . . . . . . . . . . Construction Impeded 4 | . . . . . 1 . 1 2 . Haulers Reinforced 1 | . . . . . . . . . 1 Active Scanning Responses . | . . . . . . . . . . Cargo Convoy Interrupts . | . . . . . . . . . . Stealth | -11 -10 -10 -7 -7 -5 -4 -3 -2 -1 --------- Run | Yrd Mat Sub Rec Scr Fac Fac Res Res Acc Distress Signals 8 | . . . . . 1 1 . 5 1 Communications Jammed 2 | . . . . . . . . 2 . Distress Signals 2 | . . . . . . . . 2 . Times Spotted 221 | . 9 22 . . 22 26 6 76 60 Peak Tracking Total 18 | . 4 2 . . 7 12 2 6 18 Tactical Retreats 17 | . . 2 . . 2 2 . 6 5 Traps | -11 -10 -10 -7 -7 -5 -4 -3 -2 -1 ------- Run | Yrd Mat Sub Rec Scr Fac Fac Res Res Acc Traps Triggered 5 | . 1 2 . . 1 1 . . . Indirectly . | . . . . . . . . . . Trap Hack Attempts . | . . . . . . . . . . Triggered . | . . . . . . . . . . Disarmed . | . . . . . . . . . . Reprogrammed . | . . . . . . . . . . Reused . | . . . . . . . . . . Traps Extracted . | . . . . . . . . . . Installed . | . . . . . . . . . . Triggered . | . . . . . . . . . . Most Traps Carried 1 | . . 1 . . . . . . . Machines | -11 -10 -10 -7 -7 -5 -4 -3 -2 -1 ---------- Run | Yrd Mat Sub Rec Scr Fac Fac Res Res Acc Machines Disabled 12 | . 1 1 1 . 2 3 1 . 3 Max in Single Turn 1 | . 1 1 1 . 1 . . . 1 Machines Repaired . | . . . . . . . . . . Machines Dismantled . | . . . . . . . . . . Machines Sabotaged . | . . . . . . . . . . Overloaded Fab Kills . | . . . . . . . . . . Hacking | -11 -10 -10 -7 -7 -5 -4 -3 -2 -1 --------- Run | Yrd Mat Sub Rec Scr Fac Fac Res Res Acc Machines Accessed 32 | . 1 2 7 5 4 4 3 6 . Terminals 15 | . 1 . 5 . 2 3 2 2 . Fabricators 2 | . . . . . . . . 2 . Repair Stations 1 | . . . . . 1 . . . . Recycling Units 6 | . . . 2 . 1 1 1 1 . Scanalyzers . | . . . . . . . . . . Garrison Access 1 | . . . . . . . . 1 . Total Hacks 86 | . 3 5 18 24 12 9 4 11 . Successful 53 | . 2 5 8 24 8 3 1 2 . Failed 33 | . 1 . 10 . 4 6 3 9 . Catastrophic 9 | . . . 3 . . 1 2 3 . Database Lockouts . | . . . . . . . . . . Manual 47 | . 2 . 14 . 11 7 4 9 . Terminals 40 | . 3 . 13 . 10 8 3 3 . Fabricators 4 | . . . . . . . . 4 . Repair Stations 1 | . . . . . 1 . . . . Recycling Units 11 | . . . 5 . 1 1 1 3 . Scanalyzers . | . . . . . . . . . . Garrison Access 1 | . . . . . . . . 1 . Terminal Hacks 33 | . 1 5 2 24 . 1 . . . Record 21 | . . 4 . 17 . . . . . Robot Analysis 8 | . . . 1 7 . . . . . Prototype ID Bank 1 | . 1 . . . . . . . . Branch Access Points 1 | . . . . . . 1 . . . Zone Layout 1 | . . . 1 . . . . . . Derelict Proto ID Bank 1 | . . 1 . . . . . . . Fabricator Hacks 1 | . . . . . . . . 1 . Network Status 1 | . . . . . . . . 1 . Repair Station Hacks 1 | . . . . . 1 . . . . Refit 1 | . . . . . 1 . . . . Recycling Unit Hacks 2 | . . . 2 . . . . . . Retrieve Components 2 | . . . 2 . . . . . . Scanalyzer . | . . . . . . . . . . Garrison Access Hacks . | . . . . . . . . . . Unauthorized Hacks 16 | . 1 . 4 . 7 2 1 1 . Terminals 12 | . 1 . 3 . 6 1 . 1 . Track 2 | . . . . . 2 . . . . Botnet 6 | . . . 3 . 1 1 . 1 . Operators 2 | . 1 . . . 1 . . . . Skim 2 | . . . . . 2 . . . . Fabricators . | . . . . . . . . . . Repair Stations 3 | . . . . . 1 1 1 . . Recycling Units 1 | . . . 1 . . . . . . Recyclers 1 | . . . 1 . . . . . . Fedlink 1 | . . . . . . 1 . . . Scrapoids 2 | . . . . . 1 . 1 . . Scanalyzers . | . . . . . . . . . . Garrison Access . | . . . . . . . . . . Data Cores Recovered . | . . . . . . . . . . Used . | . . . . . . . . . . Hacking Detections 19 | . 1 . 5 . 2 3 2 6 . Full Trace Events 4 | . . . 3 . . . . 1 . Feedback Events . | . . . . . . . . . . Feedback Blocked . | . . . . . . . . . . Robot Schematics Acquired . | . . . . . . . . . . Robots Built . | . . . . . . . . . . Authchips . | . . . . . . . . . . Time . | . . . . . . . . . . Total Robot Build Rating . | . . . . . . . . . . Part Schematics Acquired . | . . . . . . . . . . Parts Built . | . . . . . . . . . . Authchips . | . . . . . . . . . . Time . | . . . . . . . . . . Total Part Build Rating . | . . . . . . . . . . Parts Repaired . | . . . . . . . . . . Time . | . . . . . . . . . . Parts Recycled . | . . . . . . . . . . Recycled Matter . | . . . . . . . . . . Retrieved Matter . | . . . . . . . . . . Retrieved Components . | . . . . . . . . . . Parts Scanalyzed . | . . . . . . . . . . Part Schematics Acquired . | . . . . . . . . . . Parts Damaged . | . . . . . . . . . . Bothacking | -11 -10 -10 -7 -7 -5 -4 -3 -2 -1 ------------ Run | Yrd Mat Sub Rec Scr Fac Fac Res Res Acc Used RIF Installer . | . . . . . . . . . . Robots Hacked . | . . . . . . . . . . Non-combat . | . . . . . . . . . . Combat . | . . . . . . . . . . Robot Hacks Applied . | . . . . . . . . . . Relay Couplers Released . | . . . . . . . . . . Fabnet Peak Effective % . | . . . . . . . . . . Robots Rewired . | . . . . . . . . . . Allies Hacked 1 | . . . . . . 1 . . . Hacks Repelled . | . . . . . . . . . . Allies | -11 -10 -10 -7 -7 -5 -4 -3 -2 -1 -------- Run | Yrd Mat Sub Rec Scr Fac Fac Res Res Acc Total Allies 10 | . . . . . 5 . 5 . . Largest Group 5 | . . . . . 5 3 5 2 . Highest-Rated Group 323 | . . . . . 238 147 323 128 . Highest-Rated Ally 67 | . . . . . 53 53 67 64 . Total Orders 3 | . . . . . 1 2 . . . EXPLORE 3 | . . . . . 1 2 . . . Ally Attacks 157 | . . . . . 30 31 84 12 . Total Damage 3454 | . . . . . 719 738 1626 371 . Kills 22 | . . . . . 6 4 11 1 . Allies Corrupted 1 | . . . . . . 1 . . . Allies Melted . | . . . . . . . . . . Intel | -11 -10 -10 -7 -7 -5 -4 -3 -2 -1 ------- Run | Yrd Mat Sub Rec Scr Fac Fac Res Res Acc Robot Analysis Total 8 | . . . 1 7 . . . . . Derelict Logs Recovered 4 | . . 2 . 2 . . . . . Drone Launches 5 | . . . . . 3 2 . . . Drone Recoveries 2 | . . . . . 2 . . . . Exploration | -11 -10 -10 -7 -7 -5 -4 -3 -2 -1 ------------- Run | Yrd Mat Sub Rec Scr Fac Fac Res Res Acc Turns Passed 13426 | 61 881 3728 1479 1906 787 853 569 2288 874 Spaces Moved 7648 | 35 288 2302 692 1753 468 733 235 748 394 Core 427 | 4 . 1 . . 132 212 11 . 67 Treads 2932 | 31 288 1688 25 . . . 185 715 . Legs 1119 | . . . . . 258 515 . 33 313 Wheels 3033 | . . 613 667 1753 . . . . . Hover 78 | . . . . . 78 . . . . Flight 59 | . . . . . . 6 39 . 14 Fastest Speed 30 | 50 160 110 115 100 50 40 30 120 40 Average Speed 135 | 147 160 147 121 106 81 100 200 225 125 Slowest Speed 320 | 160 160 240 320 115 180 190 320 320 260 Overloaded Moves . | . . . . . . . . . . Propulsion Burnouts . | . . . . . . . . . . Robots Hopped 1 | . . . . . . 1 . . . Cave-ins Triggered 5 | . . . . . . . . . 5 Exploration Rate (%) 40 | 3 41 92 92 95 18 21 6 21 13 Regions Visited 9 Branch Regions 3 Pre-discovered Areas . | . . . . . . . . . . Known Exits Taken 1 | . . . . . . . 1 . . Unknown Exits Taken 8 | 1 1 1 1 1 1 1 . 1 . Scrap Searched 20 | . . 15 . 5 . . . . . Spaces Dug 152 | . . . 134 . . . . 1 17 Terrain Destroyed 476 | . 3 110 250 . 55 . . 29 29 Melee . | . . . . . . . . . . Projectile 94 | . . 2 43 . . . . 24 25 AOE 377 | . 3 108 207 . 55 . . . 4 Terrain Rammed . | . . . . . . . . . . Walls Destroyed . | . . . . . . . . . . Machines Disabled . | . . . . . . . . . . Actions | -11 -10 -10 -7 -7 -5 -4 -3 -2 -1 --------- Run | Yrd Mat Sub Rec Scr Fac Fac Res Res Acc Total 9818 | 42 671 2481 1192 1800 823 826 310 1046 627 Wait 1221 | . 355 15 342 5 266 49 34 83 72 Move 7637 | 34 287 2301 691 1752 467 730 234 747 394 Hop 1 | . . . . . . 1 . . . Pick Up 114 | 2 4 24 8 19 5 8 9 28 7 Fast Attach 104 | 6 2 10 3 1 6 11 16 27 22 Attach 88 | . . 6 2 . 18 5 2 20 35 Detach 25 | . . . . . 4 . . 2 19 Swap 27 | . 3 6 6 4 2 . 1 4 1 Drop 86 | . 2 21 4 19 9 11 5 11 4 Fire 492 | . 18 94 133 . 40 4 8 123 72 Melee 6 | . . . . . . 6 . . . Ram 5 | . . . 3 . . 1 . . 1 Kick 6 | . . . . . 6 . . . . Crush 2 | . . . . . . . 1 1 . Escape Stasis . | . . . . . . . . . . Rewire . | . . . . . . . . . . Trap . | . . . . . . . . . . Miscellaneous 4 | . . 4 . . . . . . . Route ------- -11/Scrapyard -10/Materials (discovered 3 exits: [*Mat] / [*Min] / *Sub) -10/Subcaves (discovered 3 exits: *Mat x2 / *Rec) -7/Recycling -7/Scraptown (discovered 2 exits: *Fac x2) -5/Factory -4/Factory (discovered 3 exits: *Res / Upp x2) -3/Research (discovered 2 exits: *Res x2) -2/Research -1/Access History --------- Turn | Location | Event 11 | -11/Scrapyard | Discovered new exit (range 16) 62 | -11/Scrapyard | Entered Materials 305 | -10/Materials | Build established: Mutant 345 | -10/Materials | Discovered new exit (range 7) 414 | -10/Materials | Discovered new exit (range 15) 922 | -10/Materials | Discovered new exit (range 5) 943 | -10/Materials | Entered Subcaves 1254 | -10/Subcaves | Discovered new exit (range 16) 1591 | -10/Subcaves | Identified exit to Materials 1813 | -10/Subcaves | Shifting Twisted Machinery released Scrap Shield 3019 | -10/Subcaves | Build established: Subdweller-Mutant 3026 | -10/Subcaves | Discovered exit to Materials (range 9) 3039 | -10/Subcaves | Learned Materials terminal intel 3145 | -10/Subcaves | Core integrity fell below 50% 3209 | -10/Subcaves | A swath of the cavern ceiling suddenly collapsed 3224 | -10/Subcaves | A swath of the cavern ceiling suddenly collapsed 3417 | -10/Subcaves | Visited Clippyterm 3520 | -10/Subcaves | Core integrity fell below 20% 3594 | -10/Subcaves | Build established: Mutant 3990 | -10/Subcaves | Visited 4L-MR0's lab 4005 | -10/Subcaves | Found Arachnoskeleton 4247 | -10/Subcaves | Shifting Twisted Machinery released Sub. Machine Gun 4671 | -10/Subcaves | Entered Recycling 4672 | -7/Recycling | Met a Zionite searching for Scraptown 6120 | -7/Recycling | Scanned before Scraplab entrance 6133 | -7/Recycling | Discovered new exit (range 11) 6136 | -7/Recycling | Entered Scraplab 6150 | -7/Recycling | Entered Scraptown 6290 | -7/Scraptown | Visited Assassins FH 6535 | -7/Scraptown | Scanned Subdweller tech in exchange for log data 6537 | -7/Scraptown | Learned 8 Research zone layouts 6538 | -7/Scraptown | Learned Research emergency access door positions 6548 | -7/Scraptown | Discovered new exit (range 11) 6663 | -7/Scraptown | Visited TADAMA 6686 | -7/Scraptown | Visited Spacefarers 6746 | -7/Scraptown | Visited Red Mages 6939 | -7/Scraptown | Visited Shadow of the Wyrm 6969 | -7/Scraptown | Visited UFD Registry 6969 | -7/Scraptown | Registered with UFD as "Rustback" 6984 | -7/Scraptown | Visited Symbiants 7010 | -7/Scraptown | Visited Awakened 7067 | -7/Scraptown | Visited A0-MCA Data Center 7073 | -7/Scraptown | Given a C+ rating by A0-MCA 7078 | -7/Scraptown | Found A0-MCA's Component Scanner 7098 | -7/Scraptown | Visited Scrap Suit Storage 7155 | -7/Scraptown | Visited Curators Association 7322 | -7/Scraptown | Visited Chapter 10 7354 | -7/Scraptown | Visited DA-N13 Charitable Foundation 7365 | -7/Scraptown | Found DCF Scrap (30 items) 7420 | -7/Scraptown | Visited Junk Repository 7592 | -7/Scraptown | Found Scrap Suit 7644 | -7/Scraptown | Visited Modified Component R&D 7710 | -7/Scraptown | Visited Analyses Database 7738 | -7/Scraptown | Visited Science Testing Area 7759 | -7/Scraptown | Visited Cartography Club 7922 | -7/Scraptown | Discovered new exit (range 5) 8056 | -7/Scraptown | Entered Factory 8056 | -5/Factory | Evolved 10 slots: Power x1, Propulsion x2, Utility x6, Weapon x1 8061 | -5/Factory | Attached Arachnoskeleton, gained temporary slots: Propulsion x3 8276 | -5/Factory | Spotted B-75 Beast 8515 | -5/Factory | Lost 10 parts (1p2n2u5w) 8722 | -5/Factory | Core integrity fell below 50% 8780 | -5/Factory | Scrapoid reinforcements arrived 8804 | -5/Factory | Discovered new exit (range 9) 8843 | -5/Factory | Entered another Factory area 8843 | -4/Factory | Accompanied by 3 allies 8843 | -4/Factory | Evolved 2 slots: Propulsion x1, Weapon x1 8864 | -4/Factory | Identified exit to Upper Caves 9286 | -4/Factory | Build established: Scavenger-Skirmisher 9324 | -4/Factory | Found Scrap Suit 9509 | -4/Factory | Spotted B-86 Titan 9549 | -4/Factory | Released all parts (5) 9580 | -4/Factory | Lost 11 parts (1p4n4u2w) 9608 | -4/Factory | Core integrity fell below 50% 9689 | -4/Factory | Discovered new exit (range 5) 9695 | -4/Factory | Core integrity fell below 20% 9696 | -4/Factory | Entered Research 9696 | -3/Research | Evolved 2 slots: Power x1, Propulsion x1 9697 | -3/Research | Identified exit to Research 9726 | -3/Research | Scrapoid reinforcements arrived 10199 | -3/Research | Discovered exit to Research (range 11) 10237 | -3/Research | Build established: Scavenger-Tank 10265 | -3/Research | Entered another Research area 10265 | -2/Research | Accompanied by 2 allies 10265 | -2/Research | Evolved 2 slots: Utility x2 10319 | -2/Research | Found Heavy Servo Lattice 11152 | -2/Research | System corruption reached 10% 11179 | -2/Research | Lost 4 parts (1n3u) 11500 | -2/Research | Spotted B-90 Cyclops 11617 | -2/Research | Build established: Scavenger-Gunner 11827 | -2/Research | Garrison activated, responded to threat 11968 | -2/Research | Lost 9 parts (1p3n2u3w) 12277 | -2/Research | Garrison activated, responded to threat 12442 | -2/Research | Lost 5 parts (1p2n2u) 12495 | -2/Research | Lost 7 parts (1p2n1u3w) 12515 | -2/Research | First assault squad dispatched 12517 | -2/Research | Discovered new exit (range 16) 12553 | -2/Research | Entered Access 12553 | -1/Access | Evolved 2 slots: Propulsion x1, Utility x1 12682 | -1/Access | Garrison activated, responded to threat 12846 | -1/Access | First assault squad dispatched 12849 | -1/Access | Spotted B-99 Colossus 13049 | -1/Access | Build established: Scavenger-Tank 13099 | -1/Access | Destroyed 12 combat bots 13105 | -1/Access | System corruption reached 10% 13152 | -1/Access | Crushed by falling debris 13158 | -1/Access | Crushed by falling debris 13178 | -1/Access | Crushed by falling debris 13200 | -1/Access | Crushed by falling debris 13200 | -1/Access | System corruption reached 30% 13211 | -1/Access | Crushed by falling debris 13231 | -1/Access | Lost 30 parts (2p9n10u9w) 13381 | -1/Access | Core integrity fell below 50% 13383 | -1/Access | Released all parts (16) 13418 | -1/Access | Core integrity fell below 20% 13425 | -1/Access | Lost 6 parts (1p3n2w) 13427 | -1/Access | Destroyed by P-80 Master with Gamma Rifle Last Messages --------------- 13386_ Acquired 10 matter. 13386_ Xenon Bombardment Thruster destroyed. 13386_ K-01 Serf collects debris. 13386_ Acquired Xenon Bombardment Thruster. 13388_ Acquired 10 matter. 13390_ Chain reaction triggered in Lgt. Ion Engine. 13390_ K-01 Serf destroyed. 13391_ P-80 Master resets P-80 Master, system corruption cleaned. 13392_ System corrupted: Xenon Bombardment Thruster rejected. 13392_ Acquired Xenon Bombardment Thruster. 13394_ System corrupted: Slammed into ceiling. 13394_ Xenon Bombardment Thruster destroyed. 13394_ System corrupted by crushing effect (+3). 13410_ System corrupted: Energy discharge (-30). 13412_ Slammed into P-80 Master. 13415_ Door malfunctions. 13423_ G-73 Enforcer misfires. 13423_ Door malfunctions. 13426_ K-01 Serf collects debris. 13426_ P-80 Master resets G-73 Enforcer, system corruption cleaned. Map ----- +----------------------------------------------------+ | ???????????##!# #??????# =!=[| | | ???????????#### ######## ==!%[ | | ????????????### # *!!!###/# | | ???????????## # # !%[*# | | ?????????#?####[! # !|!# | | ??????????## ## ! / " | | ?############"#! # # " | | ?# #% # # "" | | ?# ######## # "" | | ?# #!! ######## " | | ?# "" ]==#*=! #??????# | | ?# "" !!!# [= #??????# | | ?# """"""==%+*[= #??????# | | ?# """ ""!==#%** = #??????# | | ?# "" !=%# %[ =[%* ## ##### | | ?# "" [ #*% % [ # ##"#### | | ?# * # k ######## * ##### | | ?# ==# # !%% | | ?# # # % | | ?############"# + [ | | ????????????# # # | | ???????????## # # | | ??????????#?### p # * | | ???????????##?#m # | | ??????????????# # | | ??????????????# @ ####### ##### | | ??????????????# m ##############????? | | ?###########??# # #????? | | ?? ??# # #????? | | ??? ?# # #????? | | ???? " ?# g# #????? | | ????""" # g # #????? | | ????""" # gp# #????? | | ????"""" / p / #????? | | ????""" # # #????? | | ??? " # # #????? | | ?? ?# # #????? | | ?# ]?# # #????? | | ?# ??# # #????? | | ?# ??# ##/###########????? | | ?##########???# ## #??????????????? | | ??????????????# ## #??????????????? | | ??????????????# ## #??????????????? | | ??????????????# ## #??????????????? | | ????????????######+#####+#??????????????? | | ????????????# #??????????????? | | ????????????# #??????????????? | | ????????????# #??????????????? | | ????????????# =! #??????????????? | | ????????????# !! #??????????????? | +----------------------------------------------------+ Best States ------------- Heat Dissipation 109 Coolant Potential 100 Energy Generation 63 Energy Capacity 830 Matter Stores 335 Matter Capacity 450 Sight Range 16 Terrain Scan Range 14 Terrain Scan Density 10 Jamming Range 16 Armor Coverage 800 Utility Shielding 33 Weapon Shielding 66 Phase Shifting 15 Evasion (%) 64 Targeting Accuracy 8 Recoil Reduction 8 Matter Filtering 30 Energy Filtering 50 Salvage Targeting 4 Offensive Hacking 10 Defensive Hacking 10 Item Schematics ----------------- None Robot Schematics ------------------ None Fabricated ------------ Nothing Alien Tech Used ----------------- None Achievements -------------- None Challenges ------------ None Game ------ Seed MicroCommSpear Manual? 0 Play Time 01:57:14 Cumulative 200.2 hours Start 2024.09.17 @ 18:14:25 End 2024.09.17 @ 20:12:06 Sessions 1 Manual Loads 0 Difficulty Rogue Special Mode None Game No. 182 Rogue 182 Adventurer 0 Explorer 0 Win Type - Total 3 Types 3/0/0/0/0/0/0/0/0 Lore% 47 Gallery% 67 Achievement% 56 Wizard Run 0 Options --------- Layout 0 ASCII 0 Keyboard 0 Movement Numpad Keybinds 0 Fullscreen 2 Font 18/SmallcapsGlow Map View 76x50 Zoom Use 0% Tactical HUD 1 Map Filters NONE Filters NONE Steam 1 RUN: 80fa86c2-19f4-4f90-872c-4ae0a8510c2b